[Event "Elegant 1st Division League 2024"]
[Site "Dhaka"]
[Date "2024.07.12"]
[Round "2.15"]
[White "Salim Mohammed, Salim Al Amri"]
[Black "Hrishin, Talukder"]
[Result "0-1"]
[Annotator "RC"]
[ECO "A25"]
[WhiteElo "1928"]
[BlackElo "1982"]
[PlyCount "100"]
[EventDate "2024.07.10"]
[EventType "team-tourn"]
[EventCountry "BAN"]
[SourceTitle "playchess.com"]
[Source "ChessBase"]
[SourceQuality "1"]
[TimeControl "5400+30"]

1. c4 {[%emt 0:54:00]} e5 {[%emt 0:00:59]} 2. Nc3 {[%emt 0:00:06]} Nc6 {[%emt 0:00:02]} 3. g3 {[%emt 0:00:37]} f5 {[%emt 0:00:03]} 4. e3 {[%emt 0:00:46]} Be7 {[%emt 0:00:37]} 5. Bg2 {[%emt 0:00:58]} d6 {[%emt 0:00:09]} 6. Nge2 {[%emt 0:00:30]} Nf6 {[%emt 0:01:12]} 7. d4 {[%emt 0:00:35]} O-O {[%emt 0:01:29]} 8. O-O {[%emt 0:00:13]} Qe8 {[%emt 0:01:04]} 9. Nd5 {[%emt 0:01:07]} Nxd5 {[%emt 0:03:34]} 10. cxd5 {[%emt 0:01:03]} Nd8 {[%emt 0:02:34]} 11. Bd2 {[%emt 0:03:32]} e4 {[%emt 0:18:17]} 12. Qb3 {[%emt 0:02:08]} Kh8 {[%emt 0:02:21]} 13. Rac1 {[%emt 0:02:20]} c6 {[%emt 0:00:40]} 14. Ba5 {[%emt 0:05:05]} b6 {[%emt 0:10:00]} 15. Bd2 {[%emt 0:01:23]} cxd5 {[%emt 0:08:04]} 16. Nf4 {[%emt 0:02:36]} Rb8 {[%emt 0:07:13]} 17. Rc7 {[%emt 0:02:05]} Bg5 {[%emt 0:30:22]} 18. Rfc1 {[%emt 0:03:46]} Bb7 {[%emt 0:01:28]} 19. Nh3 {[%emt 0:10:41]} Bh6 {[%emt 0:01:33]} 20. Qa3 {[%emt 0:00:07]} Ne6 {[%emt 0:00:15]} 21. R7c2 {[%emt 0:01:05]} Ra8 {[%emt 0:03:57]} 22. Qxd6 {[%emt 0:00:14]} Rf6 {[%emt 0:00:03]} 23. Qe5 {[%emt 0:01:45]} Qb8 {[%emt 0:02:15]} 24. Bb4 {[%emt 0:01:38]} Qxe5 {[%emt 0:00:14]} 25. dxe5 {[%emt 0:00:02]} Rf7 {[%emt 0:00:02]} 26. Nf4 {[%emt 0:00:15]} Bxf4 {[%emt 0:00:23]} 27. gxf4 {[%emt 0:00:15]} g5 {[%emt 0:01:57]} 28. fxg5 {[%emt 0:02:15]} Rg8 {[%emt 0:00:33]} 29. h4 {[%emt 0:00:40]} h6 {[%emt 0:00:04]} 30. f4 {[%emt 0:00:25]} exf3 {[%emt 0:00:12]} 31. Bxf3 {[%emt 0:00:13]} hxg5 {[%emt 0:00:08]} 32. hxg5 {[%emt 0:01:54]} Nxg5 {[%emt 0:00:14]} 33. Rh2+ {[%emt 0:00:33]} Nh3+ {[%emt 0:01:59]} 34. Kh1 {[%emt 0:01:05]} Rh7 {[%emt 0:00:01]} 35. Rf1 {[%emt 0:00:57]} Ba6 {[%emt 0:00:18]} 36. Bc3 {[%emt 0:00:56]} Bxf1 {[%emt 0:01:24]} 37. e6+ {[%emt 0:00:07]} Rgg7 {[%emt 0:00:01]} 38. Bxg7+ {[%emt 0:00:48]} Kxg7 {[%emt 0:00:02]} 39. Bxd5 {[%emt 0:00:37]} Nf2+ {[%emt 0:00:41]} 40. Kg1 {[%emt 0:00:02]} Rxh2 {[%emt 0:00:04]} 41. Kxh2 {[%emt 0:00:23]} Ng4+ {[%emt 0:00:44]} 42. Kg1 {[%emt 0:00:31]} Bb5 {[%emt 0:00:12]} 43. e4 {[%emt 0:00:30]} f4 {[%emt 0:00:30]} 44. Kg2 {[%emt 0:00:13]} Nf2 45. Kxf2 {[%emt 0:00:24]} Kf6 {[%emt 0:01:00]} 46. b3 {[%emt 0:00:21]} a5 {[%emt 0:00:39]} 47. a4 {[%emt 0:00:13]} Bd3 {[%emt 0:00:20]} 48. Kg2 {[%emt 0:00:22]} Be2 {[%emt 0:00:54]} 49. Kf2 {[%emt 0:00:15]} Bg4 {[%emt 0:00:03]} 50. Kg2 {[%emt 0:00:37]} Bxe6 {[%emt 0:00:15]} 0-1

[Event "Elegant 1st Division League 2024"]
[Site "Dhaka"]
[Date "2024.07.12"]
[Round "2.16"]
[White "Mohammed, Shaker Ullah"]
[Black "Islam, Obaidul Shahin"]
[Result "1/2-1/2"]
[Annotator "RC"]
[ECO "C54"]
[WhiteElo "2018"]
[BlackElo "1976"]
[PlyCount "156"]
[EventDate "2024.07.10"]
[EventType "team-tourn"]
[EventCountry "BAN"]
[SourceTitle "playchess.com"]
[Source "ChessBase"]
[SourceQuality "1"]
[TimeControl "5400+30"]

1. e4 {[%emt 0:01:00]} e5 {[%emt 0:00:04]} 2. Nf3 {[%emt 0:00:10]} Nc6 {[%emt 0:00:03]} 3. Bc4 {[%emt 0:00:22]} Bc5 {[%emt 0:00:10]} 4. c3 {[%emt 0:01:57]} Nf6 {[%emt 0:01:31]} 5. d4 {[%emt 0:02:16]} exd4 {[%emt 0:00:12]} 6. e5 {[%emt 0:00:25]} d5 {[%emt 0:03:33]} 7. Bb5 {[%emt 0:06:35]} Ne4 {[%emt 0:01:12]} 8. cxd4 {[%emt 0:00:08]} Bb4+ {[%emt 0:03:41]} 9. Bd2 {[%emt 0:00:10]} Nxd2 {[%emt 0:01:46]} 10. Nbxd2 {[%emt 0:00:21]} Bd7 {[%emt 0:00:18]} 11. Be2 {[%emt 0:06:40]} O-O {[%emt 0:06:50]} 12. a3 {[%emt 0:01:13]} Be7 {[%emt 0:03:28]} 13. Qb3 {[%emt 0:00:43]} Bc8 {[%emt 0:02:15]} 14. Bb5 {[%emt 0:00:47]} Na5 {[%emt 0:01:23]} 15. Qc3 {[%emt 0:00:10]} c6 {[%emt 0:00:23]} 16. Bd3 {[%emt 0:00:08]} b5 {[%emt 0:01:04]} 17. O-O {[%emt 0:01:24]} Nc4 {[%emt 0:02:06]} 18. b3 {[%emt 0:02:28]} Nxd2 {[%emt 0:09:51]} 19. Nxd2 {[%emt 0:02:23]} Qb6 {[%emt 0:01:35]} 20. b4 {[%emt 0:00:18]} a5 {[%emt 0:00:35]} 21. Nb3 {[%emt 0:00:27]} a4 {[%emt 0:10:52]} 22. Nd2 {[%emt 0:01:47]} f6 {[%emt 0:02:12]} 23. Rac1 {[%emt 0:05:28]} Bd7 {[%emt 0:03:19]} 24. e6 {[%emt 0:04:09]} Be8 {[%emt 0:00:03]} 25. f4 {[%emt 0:00:17]} f5 {[%emt 0:00:51]} 26. Nf3 {[%emt 0:00:31]} Rf6 {[%emt 0:02:54]} 27. Rfe1 {[%emt 0:01:00]} Rd8 {[%emt 0:00:30]} 28. Re5 {[%emt 0:00:50]} g6 {[%emt 0:00:15]} 29. g3 {[%emt 0:02:27]} Rd6 {[%emt 0:01:33]} 30. Rce1 {[%emt 0:00:03]} Rf8 {[%emt 0:05:22]} 31. R5e2 {[%emt 0:03:43]} Rf6 {[%emt 0:03:46]} 32. Ng5 {[%emt 0:00:18]} Kg7 {[%emt 0:01:13]} 33. Kg2 {[%emt 0:02:27]} h6 {[%emt 0:03:38]} 34. Nf3 {[%emt 0:00:53]} Rf8 {[%emt 0:00:45]} 35. h4 {[%emt 0:00:37]} h5 {[%emt 0:01:07]} 36. Kh3 {[%emt 0:03:39]} Rf6 {[%emt 0:03:59]} 37. Kg2 {[%emt 0:01:12]} Rf8 {[%emt 0:00:21]} 38. Qc2 {[%emt 0:01:11]} Rf6 {[%emt 0:00:58]} 39. Kh3 {[%emt 0:01:16]} Rf8 {[%emt 0:01:18]} 40. Qc3 {[%emt 0:00:12]} Rf6 {[%emt 0:00:15]} 41. Re5 {[%emt 0:00:20]} Rf8 {[%emt 0:02:40]} 42. Rc1 {[%emt 0:02:03]} Rf6 {[%emt 0:00:56]} 43. Rce1 {[%emt 0:01:48]} Rf8 {[%emt 0:00:41]} 44. Kg2 {[%emt 0:00:06]} Rf6 {[%emt 0:00:20]} 45. R5e2 {[%emt 0:00:02]} Rf8 {[%emt 0:00:21]} 46. Qd2 {[%emt 0:01:41]} Rf6 {[%emt 0:00:29]} 47. Bc2 {[%emt 0:01:28]} Qb8 {[%emt 0:00:40]} 48. Qd3 {[%emt 0:00:26]} Qc8 {[%emt 0:00:25]} 49. Ng5 {[%emt 0:00:53]} Rf8 {[%emt 0:00:31]} 50. Qe3 {[%emt 0:00:48]} Qd8 {[%emt 0:02:42]} 51. Qe5+ {[%emt 0:00:27]} Rf6 {[%emt 0:02:25]} 52. Bd1 {[%emt 0:01:40]} Qb8 {[%emt 0:02:26]} 53. Rc2 {[%emt 0:04:04]} Qd8 {[%emt 0:03:25]} 54. Be2 {[%emt 0:02:43]} Qb8 {[%emt 0:00:12]} 55. Bd3 {[%emt 0:00:51]} Rd8 {[%emt 0:00:56]} 56. Qe3 {[%emt 0:03:11]} Qd6 {[%emt 0:00:36]} 57. Rec1 {[%emt 0:02:14]} Rb8 {[%emt 0:00:29]} 58. Re1 {[%emt 0:01:26]} Rf8 {[%emt 0:00:26]} 59. Nf3 {[%emt 0:01:51]} Rf6 {[%emt 0:01:33]} 60. Qe5 {[%emt 0:02:41]} Qxe5 {[%emt 0:00:27]} 61. dxe5 {[%emt 0:00:13]} Rxe6 {[%emt 0:02:48]} 62. Nd4 {[%emt 0:00:19]} Kf7 {[%emt 0:00:31]} 63. Rec1 {[%emt 0:00:47]} Rb6 {[%emt 0:00:02]} 64. Kf3 {[%emt 0:01:40]} Bd7 {[%emt 0:01:14]} 65. Be2 {[%emt 0:00:46]} Bf8 {[%emt 0:01:20]} 66. Ke3 {[%emt 0:02:37]} Be7 {[%emt 0:00:14]} 67. Bf3 {[%emt 0:00:23]} Ra6 {[%emt 0:00:24]} 68. Bg2 {[%emt 0:02:03]} Bd8 {[%emt 0:00:10]} 69. Ke2 {[%emt 0:00:59]} Be7 {[%emt 0:00:47]} 70. Kd3 {[%emt 0:00:31]} Bd8 {[%emt 0:00:11]} 71. Rc5 {[%emt 0:01:31]} Be7 {[%emt 0:00:37]} 72. R5c2 {[%emt 0:00:42]} Bd8 {[%emt 0:00:52]} 73. Ke2 {[%emt 0:00:44]} Be7 {[%emt 0:00:02]} 74. Rd1 {[%emt 0:01:20]} Bd8 {[%emt 0:00:22]} 75. Rdc1 {[%emt 0:01:28]} Be7 {[%emt 0:00:05]} 76. Kd3 {[%emt 0:00:30]} Bd8 {[%emt 0:00:18]} 77. Bf3 {[%emt 0:00:15]} Be7 {[%emt 0:00:56]} 78. Nxe6 {[%emt 0:01:31]} Kxe6 {[%emt 0:00:13]} 1/2-1/2

[Event "Elegant 1st Division League 2024"]
[Site "Dhaka"]
[Date "2024.07.12"]
[Round "2.17"]
[White "abu, Hanif"]
[Black "Vrashank Chouhan"]
[Result "1-0"]
[Annotator "TA"]
[ECO "D35"]
[WhiteElo "2076"]
[BlackElo "2209"]
[PlyCount "65"]
[EventDate "2024.07.10"]
[EventType "team-tourn"]
[EventCountry "BAN"]
[SourceTitle "playchess.com"]
[Source "ChessBase"]
[SourceQuality "1"]
[TimeControl "5400+30"]

{[%evp 9,65,10,36,33,36,-8,4,-19,0,0,0,-46,-30,-29,-32,-29,-40,-46,-29,-42,-47,-49,-14,-24,-32,-35,-12,-57,-57,-57,-57,-84,-57,-66,-57,-57,95,97,177,169,337,329,386,383,412,416,547,526,513,500,487,480,480,469,473,471,462,456]} 1. d4 {[%emt 0:01:18]} d5 {[%emt 0:00:06]} 2. c4 {[%emt 0:00:06]} e6 {[%emt 0:00:05]} 3. cxd5 {[%emt 0:00:09]} exd5 {[%emt 0:00:06]} 4. Nc3 {[%emt 0:00:13]} Nf6 {[%emt 0:00:18]} 5. Bg5 {[%emt 0:00:15]} Bb4 {[%emt 0:01:00]} 6. Qb3 {[%emt 0:00:47]} c5 {[%emt 0:01:26]} 7. a3 {[%emt 0:00:15]} Bxc3+ {[%emt 0:05:25]} 8. bxc3 {[%emt 0:01:05] The position is equal.} Nc6 {[%emt 0:02:48]} 9. Nf3 {[%emt 0:01:40]} O-O {[%emt 0:02:08]} 10. Bxf6 {[%emt 0:04:14]} (10. dxc5 $11 h6 11. Bxf6 Qxf6 12. e3) 10... Qxf6 $15 {[%emt 0:00:40]} 11. e3 {[%emt 0:00:06]} c4 {[%emt 0:06:48]} 12. Qb2 {[%emt 0:04:52]} Rb8 {[%emt 0:07:18]} 13. Be2 {[%emt 0:00:48]} b5 {[%emt 0:00:54]} 14. O-O {[%emt 0:01:03]} a5 {[%emt 0:00:04]} 15. Nd2 {[%emt 0:00:49]} Bf5 {[%emt 0:15:32]} 16. Bf3 {[%emt 0:03:40]} Qe6 {[%emt 0:00:33]} 17. Rfe1 {[%emt 0:01:36]} Be4 {[%emt 0:00:08]} 18. Nxe4 {[%emt 0:02:46]} dxe4 {[%emt 0:00:04]} 19. Be2 {[%emt 0:00:13]} Ne7 {[%emt 0:01:18][%cal Bc6e7,Be7d5,Bd5c7][%mdl 32]} 20. Qc2 {[%emt 0:00:34]} Rfc8 {[%emt 0:00:24]} 21. Rec1 {[%emt 0:02:04]} Nd5 {[%emt 0:01:39]} 22. g3 {[%emt 0:10:09]} b4 $2 {[%emt 0:09:46]} (22... Rb7 $15 {stays ahead.}) 23. cxb4 $16 {[%emt 0:09:29]} axb4 {[%emt 0:19:17]} (23... c3 $16 {was called for.}) 24. Bxc4 $18 {[%emt 0:01:05] Black must now prevent Qa2.} Qe7 $2 {[%emt 0:03:08]} (24... bxa3 {might work better.} 25. Rxa3 Nb4) 25. Qb3 {[%emt 0:03:13]} Nc7 {[%emt 0:06:05]} 26. axb4 {[%emt 0:07:04]} Rxb4 {[%emt 0:00:03] [#]} 27. Bxf7+ {[%emt 0:03:45][%mdl 512]} Kf8 {[%emt 0:00:02] [#]} (27... Kh8 28. Qc3) 28. Rxc7 $1 {[%emt 0:00:41] White is clearly winning.} Qxc7 {[%emt 0:00:36]} 29. Qxb4+ {[%emt 0:00:02]} Kxf7 {[%emt 0:00:06]} 30. Qa5 {[%emt 0:01:15]} Qxa5 {[%emt 0:00:40]} 31. Rxa5 {[%emt 0:00:17]} Rc1+ {[%emt 0:00:07]} 32. Kg2 {[%emt 0:00:02]} Rc2 {[%emt 0:00:06]} 33. Re5 {[%emt 0:00:05] Weighted Error Value: White=0.10 (very precise) /Black=0.39.  Mistake:       	White=1     	Black=3      Inaccurate:     	White=3     	Black=3      OK:         	White=10    	Black=5      Best:        	White=3     	Black=2} 1-0

[Event "Elegant 1st Division League 2024"]
[Site "Dhaka"]
[Date "2024.07.12"]
[Round "2.18"]
[White "Tutul, Dhar"]
[Black "Ahmed, Feroz"]
[Result "1-0"]
[Annotator "RC"]
[ECO "E69"]
[WhiteElo "2008"]
[BlackElo "2042"]
[PlyCount "83"]
[EventDate "2024.07.10"]
[EventType "team-tourn"]
[EventCountry "BAN"]
[SourceTitle "playchess.com"]
[Source "ChessBase"]
[SourceQuality "1"]
[TimeControl "5400+30"]

1. d4 {[%emt 0:00:03]} Nf6 {[%emt 0:00:19]} 2. c4 {[%emt 0:00:02]} d6 {[%emt 0:00:14]} 3. g3 {[%emt 0:00:08]} g6 {[%emt 0:00:19]} 4. Bg2 {[%emt 0:00:01]} Bg7 {[%emt 0:00:10]} 5. Nf3 {[%emt 0:00:04]} O-O {[%emt 0:00:08]} 6. O-O {[%emt 0:00:03]} Nbd7 {[%emt 0:00:55]} 7. Nc3 {[%emt 0:01:13]} e5 {[%emt 0:00:17]} 8. e4 {[%emt 0:00:12]} c6 {[%emt 0:02:25]} 9. h3 {[%emt 0:01:14]} a5 {[%emt 0:01:16]} 10. Be3 {[%emt 0:00:51]} Qe7 {[%emt 0:00:49]} 11. Qc2 {[%emt 0:00:26]} Nh5 {[%emt 0:02:39]} 12. dxe5 {[%emt 0:00:35]} dxe5 {[%emt 0:00:12]} 13. Rad1 {[%emt 0:00:14]} f5 {[%emt 0:00:43]} 14. exf5 {[%emt 0:00:26]} gxf5 {[%emt 0:00:03]} 15. Nh4 {[%emt 0:00:07]} e4 {[%emt 0:15:46]} 16. Nxf5 {[%emt 0:05:25]} Rxf5 {[%emt 0:01:45]} 17. g4 {[%emt 0:06:10]} Nf4 {[%emt 0:16:51]} 18. gxf5 {[%emt 0:00:55]} Nxg2 {[%emt 0:00:35]} 19. Kxg2 {[%emt 0:00:13]} Nf6 {[%emt 0:01:14]} 20. Ne2 {[%emt 0:16:40]} Bxf5 {[%emt 0:03:14]} 21. Ng3 {[%emt 0:00:01]} Bg6 {[%emt 0:01:45]} 22. Qd2 {[%emt 0:03:37]} h5 {[%emt 0:09:38]} 23. Bg5 {[%emt 0:18:56]} Qf7 {[%emt 0:02:54]} 24. Qf4 {[%emt 0:03:04]} Nh7 {[%emt 0:03:05]} 25. Qxf7+ {[%emt 0:00:08]} Bxf7 {[%emt 0:00:18]} 26. Rd8+ {[%emt 0:03:31]} Rxd8 {[%emt 0:00:16]} 27. Bxd8 {[%emt 0:00:02]} Bxc4 {[%emt 0:01:41]} 28. Re1 {[%emt 0:02:09]} a4 {[%emt 0:01:41]} 29. b3 {[%emt 0:04:32]} axb3 {[%emt 0:01:13]} 30. axb3 {[%emt 0:00:01]} Bxb3 {[%emt 0:02:46]} 31. Rb1 {[%emt 0:00:00]} Bd5 {[%emt 0:00:15]} 32. Rxb7 {[%emt 0:00:05]} Bc3 {[%emt 0:09:51]} 33. Kg1 {[%emt 0:01:46]} Nf6 {[%emt 0:01:53]} 34. Bxf6 {[%emt 0:02:17]} Bxf6 {[%emt 0:00:03]} 35. Nxh5 {[%emt 0:00:11]} Bd4 {[%emt 0:02:37]} 36. Nf4 {[%emt 0:01:39]} Bc4 {[%emt 0:04:34]} 37. Rb4 {[%emt 0:02:04]} e3 {[%emt 0:05:03]} 38. Rxc4 {[%emt 0:00:23]} exf2+ {[%emt 0:00:08]} 39. Kg2 {[%emt 0:00:42]} c5 {[%emt 0:00:01]} 40. Nd3 {[%emt 0:00:07]} Kf7 {[%emt 0:01:10]} 41. Nxc5 {[%emt 0:00:08]} f1=Q+ {[%emt 0:00:03]} 42. Kxf1 {[%emt 0:00:08]} 1-0

[Event "Elegant 1st Division League 2024"]
[Site "Dhaka"]
[Date "2024.07.12"]
[Round "2.19"]
[White "Md, Sariatullah"]
[Black "Dakshita Kumawat"]
[Result "1-0"]
[Annotator "RC"]
[ECO "B20"]
[WhiteElo "2005"]
[BlackElo "1928"]
[PlyCount "59"]
[EventDate "2024.07.10"]
[EventType "team-tourn"]
[EventCountry "BAN"]
[SourceTitle "playchess.com"]
[Source "ChessBase"]
[SourceQuality "1"]
[TimeControl "5400+30"]

1. e4 {[%emt 0:01:42]} e6 {[%emt 0:00:04]} 2. b3 {[%emt 0:00:10]} c5 {[%emt 0:05:19]} 3. Bb2 {[%emt 0:00:33]} d6 {[%emt 0:01:37]} 4. d4 {[%emt 0:02:20]} cxd4 {[%emt 0:00:15]} 5. Qxd4 {[%emt 0:00:39]} Nf6 {[%emt 0:01:21]} 6. Nc3 {[%emt 0:01:29]} Nc6 {[%emt 0:02:15]} 7. Qd2 {[%emt 0:00:44]} Be7 {[%emt 0:01:20]} 8. Be2 {[%emt 0:03:10]} O-O {[%emt 0:00:21]} 9. g4 {[%emt 0:00:21]} d5 {[%emt 0:08:09]} 10. exd5 {[%emt 0:00:22]} Nxd5 {[%emt 0:00:13]} 11. Nxd5 {[%emt 0:01:47]} Qxd5 {[%emt 0:00:06]} 12. Qxd5 {[%emt 0:00:17]} exd5 {[%emt 0:00:03]} 13. O-O-O {[%emt 0:00:49]} Rd8 {[%emt 0:00:02]} 14. f4 {[%emt 0:03:30]} f5 {[%emt 0:08:39]} 15. Bf3 {[%emt 0:11:31]} fxg4 {[%emt 0:04:01]} 16. Bxd5+ {[%emt 0:00:19]} Kh8 {[%emt 0:03:11]} 17. Ne2 {[%emt 0:02:34]} Bf5 {[%emt 0:01:09]} 18. Bxc6 {[%emt 0:01:52]} bxc6 {[%emt 1:01:25]} 19. Ng3 {[%emt 0:00:09]} Bg6 {[%emt 0:00:00]} 20. Rhe1 {[%emt 0:02:38]} Bh4 {[%emt 0:00:00]} 21. Bc3 {[%emt 0:07:05]} Kg8 {[%emt 0:00:00]} 22. Re6 {[%emt 0:05:44]} Rxd1+ {[%emt 0:00:00]} 23. Kxd1 {[%emt 0:00:08]} Rc8 {[%emt 0:00:00]} 24. Kc1 {[%emt 0:01:27]} c5 {[%emt 0:00:00]} 25. Ra6 {[%emt 0:00:40]} Rc7 {[%emt 0:03:30]} 26. Be5 {[%emt 0:00:23]} Rb7 {[%emt 0:00:00]} 27. Rc6 {[%emt 0:00:30]} Be7 {[%emt 0:00:00]} 28. Rc8+ {[%emt 0:04:54]} Bf8 {[%emt 0:00:00]} 29. Bd6 {[%emt 0:00:10]} Rf7 {[%emt 0:00:00]} 30. f5 {[%emt 0:00:07]} 1-0

[Event "Elegant 1st Division League 2024"]
[Site "Dhaka"]
[Date "2024.07.12"]
[Round "2.20"]
[White "Jamal Uddin"]
[Black "Noshin, Anjum"]
[Result "1/2-1/2"]
[Annotator "RC"]
[ECO "D45"]
[WhiteElo "1963"]
[BlackElo "2056"]
[PlyCount "140"]
[EventDate "2024.07.10"]
[EventType "team-tourn"]
[EventCountry "BAN"]
[SourceTitle "playchess.com"]
[Source "ChessBase"]
[SourceQuality "1"]
[TimeControl "5400+30"]

1. Nf3 {[%emt 0:00:33]} d5 {[%emt 0:00:08]} 2. c4 {[%emt 0:00:17]} c6 {[%emt 0:00:15]} 3. e3 {[%emt 0:00:23]} Nf6 {[%emt 0:00:15]} 4. Nc3 {[%emt 0:00:06]} e6 {[%emt 0:00:08]} 5. d4 {[%emt 0:00:18]} Nbd7 {[%emt 0:00:32]} 6. Qc2 {[%emt 0:00:18]} b6 {[%emt 0:00:57]} 7. Bd3 {[%emt 0:00:47]} Bb7 {[%emt 0:01:06]} 8. O-O {[%emt 0:03:48]} Bd6 {[%emt 0:08:18]} 9. h3 {[%emt 0:02:05]} O-O {[%emt 0:00:55]} 10. Rd1 {[%emt 0:00:42]} h6 {[%emt 0:02:54]} 11. Qe2 {[%emt 0:02:40]} Re8 {[%emt 0:01:37]} 12. e4 {[%emt 0:00:52]} e5 {[%emt 0:03:44]} 13. dxe5 {[%emt 0:15:53]} Nxe5 {[%emt 0:00:40]} 14. Nxe5 {[%emt 0:01:21]} Bxe5 {[%emt 0:00:45]} 15. Qc2 {[%emt 0:02:21]} Bxc3 {[%emt 0:20:18]} 16. bxc3 {[%emt 0:00:17]} dxc4 {[%emt 0:06:08]} 17. Bxc4 {[%emt 0:02:08]} Qe7 {[%emt 0:00:49]} 18. Re1 {[%emt 0:01:46]} Rad8 {[%emt 0:05:14]} 19. e5 {[%emt 0:02:18]} Nd5 {[%emt 0:07:52]} 20. a4 {[%emt 0:02:50]} a6 {[%emt 0:10:45]} 21. Bb3 {[%emt 0:10:15]} Qc5 {[%emt 0:02:14]} 22. Bd2 {[%emt 0:01:11]} Bc8 {[%emt 0:01:59]} 23. Rac1 {[%emt 0:02:35]} Re7 {[%emt 0:09:26]} 24. Re2 {[%emt 0:04:38]} a5 {[%emt 0:01:18]} 25. Rce1 {[%emt 0:00:54]} Ba6 {[%emt 0:04:46]} 26. Re4 {[%emt 0:00:34]} Nb4 {[%emt 0:04:28]} 27. cxb4 {[%emt 0:03:15]} Qxc2 {[%emt 0:00:05]} 28. Bxc2 {[%emt 0:00:09]} Rxd2 {[%emt 0:00:06]} 29. Bb1 {[%emt 0:00:42]} c5 {[%emt 0:01:27]} 30. b5 {[%emt 0:05:53]} Bb7 {[%emt 0:00:08]} 31. R4e2 {[%emt 0:00:11]} Rd4 {[%emt 0:02:50]} 32. Bc2 {[%emt 0:00:25]} c4 {[%emt 0:00:13]} 33. g3 {[%emt 0:00:57]} Bc8 {[%emt 0:01:40]} 34. Kg2 {[%emt 0:00:51]} Be6 {[%emt 0:00:27]} 35. f4 {[%emt 0:00:14]} g6 {[%emt 0:00:14]} 36. Kf3 {[%emt 0:06:12]} c3 {[%emt 0:01:52]} 37. g4 {[%emt 0:00:47]} Bc4 {[%emt 0:01:05]} 38. Re3 {[%emt 0:00:29]} Bd5+ {[%emt 0:00:10]} 39. Kg3 {[%emt 0:01:28]} Rc7 {[%emt 0:00:25]} 40. f5 {[%emt 0:00:30]} Rd2 {[%emt 0:01:20]} 41. R1e2 {[%emt 0:00:16]} g5 {[%emt 0:00:39]} 42. Kf2 {[%emt 0:02:57]} Kf8 {[%emt 0:00:33]} 43. Ke1 {[%emt 0:00:49]} Rxe2+ {[%emt 0:00:36]} 44. Kxe2 {[%emt 0:00:10]} Bc4+ {[%emt 0:00:03]} 45. Kd1 {[%emt 0:01:40]} Bd5 {[%emt 0:00:22]} 46. Rd3 {[%emt 0:00:20]} Rc5 {[%emt 0:00:07]} 47. Re3 {[%emt 0:03:17]} Ke8 {[%emt 0:00:49]} 48. Kc1 {[%emt 0:00:32]} Kd7 {[%emt 0:01:07]} 49. Bd1 {[%emt 0:01:14]} Ke7 {[%emt 0:00:35]} 50. Kc2 {[%emt 0:00:20]} Rc4 {[%emt 0:00:12]} 51. Kc1 {[%emt 0:04:43]} Re4 {[%emt 0:00:38]} 52. Rxe4 {[%emt 0:05:24]} Bxe4 {[%emt 0:00:06]} 53. Be2 {[%emt 0:00:18]} f6 {[%emt 0:00:53]} 54. e6 {[%emt 0:00:21]} Bg2 {[%emt 0:00:40]} 55. Kc2 {[%emt 0:00:34]} Bxh3 {[%emt 0:00:05]} 56. Kxc3 {[%emt 0:00:08]} h5 {[%emt 0:00:10]} 57. gxh5 {[%emt 0:00:20]} Bxf5 {[%emt 0:00:06]} 58. h6 {[%emt 0:00:49]} Bh7 {[%emt 0:00:22]} 59. Bc4 {[%emt 0:00:36]} f5 {[%emt 0:01:10]} 60. Kd2 {[%emt 0:00:33]} Kd6 {[%emt 0:00:40]} 61. Ke3 {[%emt 0:00:13]} Ke7 {[%emt 0:00:36]} 62. Bd5 {[%emt 0:01:54]} Kd6 {[%emt 0:00:43]} 63. Kd4 {[%emt 0:00:42]} Bg6 {[%emt 0:00:40]} 64. Ke3 {[%emt 0:02:04]} Bh7 {[%emt 0:00:12]} 65. Bb3 {[%emt 0:00:52]} Bg6 {[%emt 0:00:21]} 66. Kd4 {[%emt 0:00:19]} Bh7 {[%emt 0:00:05]} 67. Bd5 {[%emt 0:01:21]} Bg6 {[%emt 0:00:05]} 68. Ke3 {[%emt 0:00:27]} Bh7 {[%emt 0:00:09]} 69. Kf3 {[%emt 0:00:34]} Bg6 {[%emt 0:00:15]} 70. Ke3 {[%emt 0:00:16]} Ke5 {[%emt 0:00:37]} 1/2-1/2

[Event "Elegant 1st Division League 2024"]
[Site "Dhaka"]
[Date "2024.07.12"]
[Round "2.21"]
[White "Kazi Afsan Rawnak, Anan"]
[Black "Bhosale Shriraj"]
[Result "0-1"]
[Annotator "RC"]
[ECO "B12"]
[WhiteElo "1745"]
[BlackElo "2043"]
[PlyCount "82"]
[EventDate "2024.07.10"]
[EventType "team-tourn"]
[EventCountry "BAN"]
[SourceTitle "playchess.com"]
[Source "ChessBase"]
[SourceQuality "1"]
[TimeControl "5400+30"]

1. e4 {[%emt 0:00:04]} c6 {[%emt 0:00:10]} 2. d4 {[%emt 0:00:22]} d5 {[%emt 0:00:10]} 3. e5 {[%emt 1:31:34]} c5 {[%emt 0:00:16]} 4. dxc5 {[%emt 0:00:00]} e6 {[%emt 0:00:10]} 5. a3 {[%emt 0:00:00]} Bxc5 {[%emt 0:00:07]} 6. Qg4 {[%emt 0:00:00]} Ne7 {[%emt 0:00:47]} 7. Bd3 {[%emt 0:00:00]} Ng6 {[%emt 0:01:28]} 8. Nf3 {[%emt 0:00:00]} Nc6 {[%emt 0:00:21]} 9. O-O {[%emt 0:00:00]} Qc7 {[%emt 0:06:46]} 10. Re1 {[%emt 0:00:00]} Bd7 {[%emt 0:01:26]} 11. b4 {[%emt 0:00:00]} Bb6 {[%emt 0:00:40]} 12. Bb2 {[%emt 0:00:00]} O-O {[%emt 0:01:03]} 13. Nbd2 {[%emt 0:00:00]} a5 {[%emt 0:01:45]} 14. b5 {[%emt 0:00:00]} Nce7 {[%emt 0:00:44]} 15. a4 {[%emt 0:00:00]} Rac8 {[%emt 0:10:38]} 16. h4 {[%emt 0:00:00]} Nf5 {[%emt 0:00:57]} 17. h5 {[%emt 0:00:00]} Nge7 {[%emt 0:00:23]} 18. Qh3 {[%emt 0:00:00]} f6 {[%emt 0:04:56]} 19. Re2 {[%emt 0:00:00]} Nh6 {[%emt 0:02:14]} 20. g4 {[%emt 0:00:00]} f5 {[%emt 0:02:30]} 21. g5 {[%emt 0:00:00]} Ng4 {[%emt 0:00:05]} 22. Kg2 {[%emt 0:00:00]} d4 {[%emt 0:00:53]} 23. Qg3 {[%emt 0:00:00]} Nd5 {[%emt 0:00:38]} 24. Nb3 {[%emt 0:00:00]} Be8 {[%emt 0:03:44]} 25. Nbxd4 {[%emt 0:00:00]} Qd7 {[%emt 0:03:41]} 26. Rh1 {[%emt 0:00:00]} Nc3 {[%emt 0:00:08]} 27. Bxc3 {[%emt 0:00:00]} Rxc3 {[%emt 0:00:05]} 28. Qf4 {[%emt 0:00:00]} Qd5 {[%emt 0:02:30]} 29. Nb3 {[%emt 0:00:00]} Rxb3 {[%emt 0:03:28]} 30. cxb3 {[%emt 0:00:00]} Qxd3 {[%emt 0:00:05]} 31. Qc4 {[%emt 0:14:00]} Qd7 {[%emt 0:00:16]} 32. Rd2 {[%emt 0:00:00]} Qe7 {[%emt 0:00:15]} 33. Rf1 {[%emt 0:00:00]} Bxf2 {[%emt 0:00:33]} 34. Kh3 {[%emt 0:00:00]} Bc5 {[%emt 0:02:16]} 35. Qe2 {[%emt 0:00:00]} Bxh5 {[%emt 0:00:23]} 36. Kh4 {[%emt 0:00:00]} Be8 {[%emt 0:00:49]} 37. Rd3 {[%emt 0:00:00]} Qf7 {[%emt 0:00:42]} 38. Kg3 {[%emt 0:00:01]} f4+ {[%emt 0:00:45]} 39. Kh3 {[%emt 0:00:43]} Qf5 {[%emt 0:00:40]} 40. Nd4 {[%emt 0:01:29]} Bxd4 {[%emt 0:01:51]} 41. Rxd4 {[%emt 0:00:11]} Ne3+ {[%emt 0:00:07]} 0-1